fUSD/lending_fUSD_20250521
["ID","MTS","AMOUNT","RATE_DAILY","PERIOD"]
[361822874,1747823612699,-817.62,0.00036438,5]
[361822875,1747823612708,-1313.42,0.00036438,5]
[361822876,1747823612718,-2499.18,0.00036438,5]
[361822877,1747823612729,-2712.821305,0.00036438,5]
[361822878,1747823612738,-591.99,0.00036438,5]
[361822879,1747823612747,-420.0,0.00036438,5]
[361822880,1747823612758,-360.29214487,0.00036438,5]
[361822881,1747823612767,-2676.06,0.00036438,5]
[361822882,1747823612778,-420.0,0.00036438,5]
[361822883,1747823612788,-463.74,0.00036438,5]
[361822884,1747823612797,-1630.17,0.00036438,5]
[361822885,1747823612806,-2046.62,0.00036438,5]
[361822886,1747823612816,-707.44,0.00036438,5]
[361822887,1747823612827,-420.0,0.00036438,5]
[361822888,1747823612837,-524.92,0.00036438,5]
[361822889,1747823612847,-844.05,0.00036438,5]
[361822890,1747823612856,-2122.24,0.00036438,5]
[361822891,1747823612866,-603.94,0.00036438,5]
[361822892,1747823612876,-5021.23,0.00036438,5]
[361822893,1747823612887,-1529.49,0.00036438,5]
[361822894,1747823612897,-1250.7,0.00036438,5]
[361822895,1747823612907,-420.0,0.00036438,5]
[361822896,1747823612918,-1682.48,0.00036438,5]
[361822897,1747823612928,-1386.81,0.00036438,5]
[361822898,1747823612938,-730.49,0.00036438,5]
[361822899,1747823612947,-447.9,0.00036438,5]
[361822900,1747823612957,-1324.88,0.00036438,5]
[361822901,1747823612967,-2229.66,0.00036438,5]
[361822902,1747823612976,-472.1,0.00036438,5]
[361822903,1747823612986,-434.93,0.00036438,5]
[361822904,1747823612996,-420.0,0.00036438,5]
[361822905,1747823613005,-1282.33,0.00036438,5]
[361822906,1747823613015,-444.34,0.00036438,5]
[361822907,1747823613025,-2643.47,0.00036438,5]
[361822908,1747823613035,-1343.09,0.00036438,5]
[361822909,1747823613044,-600.65,0.00036438,5]
[361822910,1747823613055,-1076.93,0.00036438,5]
[361822911,1747823613065,-1416.84,0.00036438,5]
[361822912,1747823613075,-1332.5,0.00036438,5]
[361822913,1747823613085,-1392.97,0.00036438,5]
[361822914,1747823613096,-682.19,0.00036438,5]
[361822915,1747823613105,-438.34,0.00036438,5]
[361822916,1747823613115,-791.4,0.00036438,5]
[361822917,1747823613125,-1000.0,0.00036438,30]
[361822918,1747823613136,-632.83,0.00036438,5]
[361822919,1747823613147,-713.78,0.00036438,5]
[361822920,1747823613157,-2568.63,0.00036438,5]
[361822921,1747823613308,-420.0,0.00036438,5]
[361822922,1747823613319,-1222.57,0.00036438,5]
[361822923,1747823613329,-420.0,0.00036438,5]
[361822924,1747823613339,-1185.11,0.00036438,5]
[361822925,1747823613348,-3400.95,0.00036438,5]
[361822926,1747823613358,-618.99,0.00036438,5]
[361822927,1747823613368,-559.3,0.00036438,5]
[361822928,1747823613380,-2592.87,0.00036438,5]
[361822929,1747823613392,-729.48,0.00036438,5]
[361822930,1747823613402,-1036.77,0.00036438,5]
[361822931,1747823613412,-912.69,0.00036438,5]
[361822932,1747823613423,-2077.17,0.00036438,5]
[361822933,1747823613433,-474.23,0.00036438,5]
[361822934,1747823613444,-633.02,0.00036438,5]
[361822935,1747823613454,-2143.32,0.00036438,5]
[361822936,1747823613467,-2433.64,0.00036438,5]
[361822937,1747823613477,-680.33,0.00036438,5]
[361822938,1747823613487,-2156.45,0.00036438,5]
[361822939,1747823613499,-1587.63,0.00036438,5]
[361822940,1747823613509,-3338.68,0.00036438,5]
[361822941,1747823613520,-2132.67,0.00036438,5]
[361822942,1747823613530,-539.66,0.00036438,5]
[361822943,1747823613540,-1108.21,0.00036438,5]
[361822944,1747823613551,-1448.56,0.00036438,5]
[361822945,1747823613562,-420.0,0.00036438,5]
[361822946,1747823613573,-1231.09,0.00036438,5]
[361822947,1747823613584,-1449.81,0.00036438,5]
[361822948,1747823613594,-420.0,0.00036438,5]
[361822949,1747823613605,-2507.82,0.00036438,5]
[361822950,1747823613616,-461.55,0.00036438,5]
[361822951,1747823613628,-2269.59,0.00036438,5]
[361822952,1747823613640,-3289.43,0.00036438,5]
[361822953,1747823613653,-1017.25,0.00036438,5]
[361822954,1747823613664,-1196.46,0.00036438,5]
[361822955,1747823613675,-420.0,0.00036438,5]
[361822956,1747823613686,-1902.38,0.00036438,5]
[361822957,1747823613697,-4528.11,0.00036438,5]
[361822958,1747823613708,-437.58,0.00036438,5]
[361822959,1747823613718,-2709.01,0.00036438,5]
[361822960,1747823613730,-934.68,0.00036438,5]
[361822961,1747823613741,-644.31,0.00036438,5]
[361822962,1747823613753,-3000.52,0.00036438,5]
[361822963,1747823613765,-2558.61,0.00036438,5]
[361822964,1747823613778,-919.21,0.00036438,5]
[361822965,1747823613789,-1016.83,0.00036438,5]
[361822966,1747823613800,-3800.75,0.00036438,5]
[361822967,1747823613811,-1283.86,0.00036438,5]
[361822968,1747823613822,-5012.54,0.00036438,5]
[361822969,1747823613832,-4257.36,0.00036438,5]
[361822970,1747823613843,-420.0,0.00036438,5]
[361822971,1747823613854,-420.0,0.00036438,5]
[361822972,1747823613865,-2661.46,0.00036438,5]
[361822973,1747823613876,-420.0,0.00036438,5]
[361822974,1747823613888,-7175.57,0.00036438,5]
[361822975,1747823613899,-1626.84,0.00036438,5]
[361822976,1747823613911,-7478.95,0.00036438,5]
[361822977,1747823613921,-1297.42,0.00036438,5]
[361822978,1747823613931,-1050.66,0.00036438,5]
[361822979,1747823613942,-459.54,0.00036438,5]
[361822980,1747823613952,-3186.22,0.00036438,5]
[361822981,1747823613962,-1603.59,0.00036438,5]
[361822982,1747823613973,-1706.72,0.00036438,5]
[361822983,1747823613984,-1118.07,0.00036438,5]
[361822984,1747823613994,-3456.53,0.00036438,5]
[361822985,1747823614005,-1819.17,0.00036438,5]
[361822986,1747823614015,-477.62,0.00036438,5]
[361822987,1747823614025,-500.47,0.00036438,5]
[361822988,1747823614035,-1245.18,0.00036438,5]
[361822989,1747823614046,-864.67,0.00036438,5]
[361822990,1747823614057,-1044.28,0.00036438,5]
[361822991,1747823614067,-485.82,0.00036438,5]
[361822992,1747823614077,-483.53,0.00036438,5]
[361822993,1747823614087,-2279.99,0.00036438,5]
[361822994,1747823614097,-1093.42,0.00036438,5]
[361822995,1747823614106,-773.61,0.00036438,5]
[361822996,1747823614116,-1587.6,0.00036438,5]
[361822997,1747823614127,-2000.0,0.00036438,5]
[361822998,1747823614137,-3023.35,0.00036438,5]
[361822999,1747823614148,-2681.61,0.00036438,5]
[361823000,1747823614158,-3921.51,0.00036438,5]
[361823001,1747823614169,-774.74,0.00036438,5]
[361823002,1747823614179,-11832.32,0.00036438,5]
[361823003,1747823614190,-1140.49,0.00036438,5]
[361823004,1747823614201,-716.85,0.00036438,5]
[361823005,1747823614211,-1451.14,0.00036438,5]
[361823006,1747823614221,-1980.16,0.00036438,5]
[361823007,1747823614232,-4169.63,0.00036438,5]
[361823008,1747823614242,-614.3,0.00036438,5]
[361823009,1747823614253,-1064.83,0.00036438,5]
[361823010,1747823614263,-478.74,0.00036438,5]
[361823011,1747823614274,-1031.8,0.00036438,5]
[361823012,1747823614284,-2328.19,0.00036438,5]
[361823013,1747823614295,-2178.09,0.00036438,5]
[361823014,1747823614306,-595.22,0.00036438,5]
[361823015,1747823614316,-420.0,0.00036438,5]
[361823016,1747823614327,-12779.36,0.00036438,5]
[361823017,1747823614337,-3199.69,0.00036438,5]
[361823018,1747823614347,-464.93,0.00036438,5]
[361823019,1747823614358,-1385.93,0.00036438,5]
[361823020,1747823614369,-3624.48,0.00036438,5]
[361823021,1747823614380,-1592.89,0.00036438,5]
[361823022,1747823614395,-187.24804326,0.00036438,5]
[361823023,1747823614406,-420.0,0.00036438,5]
[361823024,1747823614416,-3239.25,0.00036438,5]
[361823025,1747823614427,-4626.37,0.00036438,5]
[361823026,1747823614437,-1377.38,0.00036438,5]
[361823027,1747823614447,-613.45,0.00036438,5]
[361823028,1747823614457,-2100.46,0.00036438,5]
[361823029,1747823614470,-232873.01,0.00036438,5]
[361823030,1747823614480,-2870.6,0.00036438,5]
[361823031,1747823614490,-420.0,0.00036438,5]
[361823032,1747823614500,-420.0,0.00036438,5]
[361823033,1747823614510,-544.44,0.00036438,5]
[361823034,1747823614519,-2582.79,0.00036438,5]
[361823035,1747823614529,-1455.85,0.00036438,5]
[361823036,1747823614540,-1140.2,0.00036438,5]
[361823037,1747823614550,-3817.8,0.00036438,5]
[361823038,1747823614560,-814.19,0.00036438,5]
[361823039,1747823614570,-1001.8,0.00036438,5]
[361823040,1747823614579,-24741.12,0.00036438,5]
[361823041,1747823614590,-746.18,0.00036438,5]
[361823042,1747823614600,-1332.61,0.00036438,5]
[361823043,1747823614611,-847.4,0.00036438,5]
[361823044,1747823614621,-6653.58,0.00036438,5]
[361823045,1747823614631,-2208.36,0.00036438,5]
[361823046,1747823614642,-3466.92,0.00036438,5]
[361823047,1747823614652,-756.27,0.00036438,5]
[361823048,1747823614662,-2780.98,0.00036438,5]
[361823049,1747823614672,-3727.2,0.00036438,5]
[361823050,1747823614683,-43430.9,0.00036438,5]
[361823051,1747823614693,-4377.12,0.00036438,5]
[361823052,1747823614703,-662.42,0.00036438,5]
[361823053,1747823614713,-1355.36,0.00036438,5]
[361823054,1747823614723,-1646.2,0.00036438,5]
[361823055,1747823614732,-420.0,0.00036438,5]
[361823056,1747823614742,-3823.68,0.00036438,5]
[361823057,1747823614752,-348.71656534,0.00036438,5]
[361823058,1747823614761,-1929.18,0.00036438,5]
[361823059,1747823614771,-692.1,0.00036438,5]
[361823060,1747823614781,-27430.46,0.00036438,5]
[361823061,1747823614790,-694.13,0.00036438,5]
[361823062,1747823614800,-1375.19,0.00036438,5]
[361823063,1747823614810,-1035.87,0.00036438,5]
[361823064,1747823614821,-8392.23,0.00036438,5]
[361823065,1747823614831,-3873.45,0.00036438,5]
[361823066,1747823614841,-2620.97,0.00036438,5]
[361823067,1747823614851,-831.34,0.00036438,5]
[361823068,1747823614860,-683.8,0.00036438,5]
[361823069,1747823614870,-420.0,0.00036438,5]
[361823070,1747823614880,-2236.59,0.00036438,5]
[361823071,1747823614891,-862.9,0.00036438,5]
[361823072,1747823614901,-648.18,0.00036438,5]
[361823073,1747823614911,-333.94,0.00036438,5]
[361823074,1747823614921,-2431.99,0.00036438,5]
[361823075,1747823614930,-2055.72,0.00036438,5]
[361823076,1747823614940,-30819.65,0.00036438,5]
[361823077,1747823614950,-426.36,0.00036438,5]
[361823078,1747823614960,-3529.5,0.00036438,5]
[361823079,1747823614970,-420.0,0.00036438,5]
[361823080,1747823614979,-420.0,0.00036438,5]
[361823081,1747823614989,-507.94,0.00036438,5]
[361823082,1747823614999,-7158.91,0.00036438,5]
[361823083,1747823615009,-1372.96,0.00036438,5]
[361823084,1747823615018,-11263.62,0.00036438,5]
[361823085,1747823615027,-10218.82,0.00036438,5]
[361823086,1747823615037,-1395.97,0.00036438,5]
[361823087,1747823615046,-11955.57,0.00036438,5]
[361823088,1747823615056,-284.37694297,0.00036438,5]
[361823089,1747823615065,-903.34,0.00036438,5]
[361823090,1747823615076,-4237.43,0.00036438,5]
[361823091,1747823615086,-1156.02,0.00036438,5]
[361823092,1747823615096,-1250.1,0.00036438,5]
[361823093,1747823615106,-1940.56,0.00036438,5]
[361823094,1747823615115,-1535.0,0.00036438,5]
[361823095,1747823615125,-2611.65,0.00036438,5]
[361823096,1747823615135,-2088.87,0.00036438,5]
[361823097,1747823615144,-604.9,0.00036438,5]
[361823098,1747823615153,-436.47,0.00036438,5]
[361823099,1747823615163,-3994.4,0.00036438,5]
[361823100,1747823615173,-4967.59,0.00036438,5]
[361823101,1747823615182,-512.59,0.00036438,5]
[361823102,1747823615191,-997.3,0.00036438,5]
[361823103,1747823615201,-420.0,0.00036438,5]
[361823104,1747823615210,-2461.55,0.00036438,5]
[361823105,1747823615219,-420.0,0.00036438,5]
[361823106,1747823615228,-3960.15,0.00036438,5]
[361823107,1747823615238,-2650.09,0.00036438,5]
[361823108,1747823615247,-1029.17,0.00036438,5]
[361823109,1747823615257,-2763.51,0.00036438,5]
[361823110,1747823615268,-655.48,0.00036438,5]
[361823111,1747823615278,-6358.26,0.00036438,5]
[361823112,1747823615289,-3823.46,0.00036438,5]
[361823113,1747823615299,-420.0,0.00036438,5]
[361823114,1747823615308,-420.0,0.00036438,5]
[361823115,1747823615319,-420.0,0.00036438,5]
[361823116,1747823615330,-2138.94,0.00036438,5]
[361823117,1747823615340,-3514.65,0.00036438,5]
[361823118,1747823615350,-578.47,0.00036438,5]
[361823119,1747823615360,-420.0,0.00036438,5]
[361823120,1747823615370,-1778.66,0.00036438,5]
[361823121,1747823615380,-7467.95,0.00036438,5]
[361823122,1747823615394,-4923.96,0.00036438,5]
[361823123,1747823615404,-420.87,0.00036438,5]
[361823124,1747823615415,-420.0,0.00036438,5]
[361823125,1747823615426,-1388.95,0.00036438,5]
[361823126,1747823615437,-1642.25,0.00036438,5]
[361823127,1747823615449,-15894.82,0.00036438,5]
[361823128,1747823615461,-7928.56,0.00036438,5]
[361823129,1747823615474,-3648.84,0.00036438,5]
[361823130,1747823615484,-535.54,0.00036438,5]
[361823131,1747823615494,-420.0,0.00036438,5]
[361823132,1747823615503,-18415.06,0.00036438,5]
[361823133,1747823615513,-420.0,0.00036438,5]
[361823134,1747823615524,-584.64,0.00036438,5]
[361823135,1747823615537,-274.48446453,0.00036438,5]
[361823136,1747823615548,-1096.3,0.00036438,5]
[361823137,1747823615557,-2111.71,0.00036438,5]
[361823138,1747823615567,-2534.37,0.00036438,5]
[361823139,1747823615577,-420.0,0.00036438,5]
[361823140,1747823615937,-2727.38,0.00036438,5]
[361823141,1747823615957,-481.82,0.00036438,5]
[361823142,1747823615967,-4064.18,0.00036438,5]
[361823143,1747823615976,-1605.11,0.00036438,5]
[361823144,1747823615986,-583.63,0.00036438,5]
[361823145,1747823615996,-420.0,0.00036438,5]
[361823146,1747823616006,-2791.01,0.00036438,5]
[361823147,1747823616015,-3277.38,0.00036438,5]
[361823148,1747823616025,-1946.19,0.00036438,5]
[361823149,1747823616034,-4162.95,0.00036438,5]
[361823150,1747823616043,-486.64,0.00036438,5]
[361823151,1747823616054,-1793.09,0.00036438,5]
[361823152,1747823616064,-2365.3,0.00036438,5]
[361823153,1747823616074,-5030.39,0.00036438,5]
[361823154,1747823616084,-1065.78,0.00036438,5]
[361823155,1747823616094,-5351.26,0.00036438,5]
[361823156,1747823616104,-8618.58,0.00036438,5]
[361823157,1747823616114,-420.0,0.00036438,5]
[361823158,1747823616124,-853.5,0.00036438,5]
[361823159,1747823616135,-1488.03,0.00036438,5]
[361823160,1747823616145,-4366.01,0.00036438,5]
[361823161,1747823616155,-5387.66,0.00036438,5]
[361823162,1747823616165,-1284.33,0.00036438,5]
[361823163,1747823616175,-420.0,0.00036438,5]
[361823164,1747823616185,-3564.21,0.00036438,5]
[361823165,1747823616195,-643.95,0.00036438,5]
[361823166,1747823616205,-11304.41,0.00036438,5]
[361823167,1747823616216,-751.7,0.00036438,5]
[361823168,1747823616226,-873.4,0.00036438,5]
[361823169,1747823616237,-1096.95,0.00036438,5]
[361823170,1747823616247,-441.74,0.00036438,5]
[361823171,1747823616257,-781.82,0.00036438,5]
[361823172,1747823616267,-420.0,0.00036438,5]
[361823173,1747823616277,-871.43,0.00036438,5]
[361823174,1747823616288,-778.01,0.00036438,5]
[361823175,1747823616298,-3424.15,0.00036438,5]
[361823176,1747823616308,-6336.25,0.00036438,5]
[361823177,1747823616318,-420.0,0.00036438,5]
[361823178,1747823616328,-575.11,0.00036438,5]
[361823179,1747823616338,-2227.33,0.00036438,5]
[361823180,1747823616348,-469.12,0.00036438,5]
[361823181,1747823616358,-2778.38,0.00036438,5]
[361823182,1747823616368,-5264.38,0.00036438,5]
[361823183,1747823616379,-2282.35,0.00036438,5]
[361823184,1747823616392,-524.10900866,0.00036438,5]
[361823185,1747823616403,-2508.06,0.00036438,5]
[361823186,1747823616413,-477.54,0.00036438,5]
[361823187,1747823616424,-420.0,0.00036438,5]
[361823188,1747823616435,-45711.39,0.00036438,5]
[361823189,1747823616446,-1438.01,0.00036438,5]
[361823190,1747823616456,-420.0,0.00036438,5]
[361823191,1747823616475,-420.0,0.00036438,5]
[361823192,1747823616486,-492.73,0.00036438,5]
[361823193,1747823616497,-2994.99,0.00036438,5]
[361823194,1747823616508,-845.16,0.00036438,5]
[361823195,1747823616519,-2847.74,0.00036438,5]
[361823196,1747823616531,-7033.02,0.00036438,5]
[361823197,1747823616542,-20631.06,0.00036438,5]
[361823198,1747823616553,-1653.01,0.00036438,5]
[361823199,1747823616565,-440.6,0.00036438,5]
[361823200,1747823616576,-480.69,0.00036438,5]
[361823201,1747823616588,-908.75,0.00036438,5]
[361823202,1747823616599,-420.0,0.00036438,5]
[361823203,1747823616610,-420.0,0.00036438,5]
[361823204,1747823616621,-1811.64,0.00036438,5]
[361823205,1747823616632,-1675.59,0.00036438,5]
[361823206,1747823616643,-1341.01,0.00036438,5]
[361823207,1747823616653,-1620.28,0.00036438,5]
[361823208,1747823616664,-2039.96,0.00036438,5]
[361823209,1747823616675,-659.87,0.00036438,5]
[361823210,1747823616686,-2331.07,0.00036438,5]
[361823211,1747823616697,-1650.39,0.00036438,5]
[361823212,1747823616707,-1130.47,0.00036438,5]
[361823213,1747823616718,-8529.77,0.00036438,5]
[361823214,1747823616729,-1170.52,0.00036438,5]
[361823215,1747823616739,-1019.14,0.00036438,5]
[361823216,1747823616750,-594.46,0.00036438,5]
[361823217,1747823616761,-420.0,0.00036438,5]
[361823218,1747823616771,-420.0,0.00036438,5]
[361823219,1747823616782,-528.88,0.00036438,5]
[361823220,1747823616792,-420.0,0.00036438,5]
[361823221,1747823616803,-729.81,0.00036438,5]
[361823222,1747823616813,-6448.31,0.00036438,5]
[361823223,1747823616824,-1260.39,0.00036438,5]
[361823224,1747823616834,-157.265004,0.00036438,5]
[361823225,1747823616844,-4031.81,0.00036438,5]
[361823226,1747823616854,-15980.3,0.00036438,2]
[361823227,1747823616865,-569.82,0.00036438,5]
[361823228,1747823616875,-1991.55,0.00036438,5]
[361823229,1747823616885,-13852.49,0.00036438,5]
[361823230,1747823616902,-1826.19,0.00036438,5]
[361823231,1747823616913,-420.0,0.00036438,5]
[361823232,1747823616923,-711.84,0.00036438,5]
[361823233,1747823616934,-932.88,0.00036438,5]
[361823234,1747823616945,-1316.77,0.00036438,5]
[361823235,1747823616955,-1559.3,0.00036438,5]
[361823236,1747823616965,-1828.91,0.00036438,5]
[361823237,1747823616976,-1672.61,0.00036438,5]
[361823238,1747823616986,-6643.48,0.00036438,5]
[361823239,1747823616996,-5987.12,0.00036438,5]
[361823240,1747823617006,-4970.74,0.00036438,5]
[361823241,1747823617017,-908.99,0.00036438,5]
[361823242,1747823617027,-1754.62,0.00036438,5]
[361823243,1747823617038,-636.17,0.00036438,5]
[361823244,1747823617048,-907.69,0.00036438,5]
[361823245,1747823617059,-434.27,0.00036438,5]
[361823246,1747823617069,-420.0,0.00036438,5]
[361823247,1747823617079,-420.0,0.00036438,5]
[361823248,1747823617090,-14282.24,0.00036438,5]
[361823249,1747823617101,-2354.7,0.00036438,5]
[361823250,1747823617111,-2934.17,0.00036438,5]
[361823251,1747823617122,-420.0,0.00036438,5]
[361823252,1747823617132,-2098.09,0.00036438,5]
[361823253,1747823617143,-2370.12,0.00036438,5]
[361823254,1747823617154,-635.77,0.00036438,5]
[361823255,1747823617165,-1608.41,0.00036438,5]
[361823256,1747823617176,-2448.57,0.00036438,5]
[361823257,1747823617187,-565.39,0.00036438,5]
[361823258,1747823617197,-832.67,0.00036438,5]
[361823259,1747823617207,-1727.02,0.00036438,5]
[361823260,1747823617218,-2132.27,0.00036438,5]
[361823261,1747823617228,-1444.81,0.00036438,5]
[361823262,1747823617239,-674.57,0.00036438,5]
[361823263,1747823617250,-1244.04,0.00036438,5]
[361823264,1747823617262,-14461.5,0.00036438,5]
[361823265,1747823617272,-5215.67,0.00036438,5]
[361823266,1747823617284,-4167.33,0.00036438,5]
[361823267,1747823617294,-888.13,0.00036438,5]
[361823268,1747823617305,-207938.64,0.00036438,5]
[361823269,1747823617315,-548.09,0.00036438,5]
[361823270,1747823617326,-196.73460875,0.00036438,5]
[361823271,1747823617348,-2319.06,0.00036438,5]
[361823272,1747823617362,-3257.11,0.00036438,5]
[361823273,1747823617373,-1507.21,0.00036438,5]
[361823274,1747823617393,-1493.55,0.00036438,5]
[361823275,1747823617405,-1088.44,0.00036438,5]
[361823276,1747823617416,-2557.88,0.00036438,5]
[361823277,1747823617427,-2873.2,0.00036438,5]
[361823278,1747823617439,-697.67,0.00036438,5]
[361823279,1747823617450,-5582.21,0.00036438,5]
[361823280,1747823617461,-480.01,0.00036438,5]
[361823281,1747823617471,-2282.96,0.00036438,5]
[361823282,1747823617482,-1657.0,0.00036438,5]
[361823283,1747823617492,-420.0,0.00036438,5]
[361823284,1747823617503,-18765.11,0.00036438,5]
[361823285,1747823617514,-799.92,0.00036438,5]
[361823286,1747823617524,-1063.9,0.00036438,5]
[361823287,1747823617536,-420.0,0.00036438,5]
[361823288,1747823617546,-673.17,0.00036438,5]
[361823289,1747823617557,-3847.23,0.00036438,5]
[361823290,1747823617569,-549.05,0.00036438,5]
[361823291,1747823617579,-474.32,0.00036438,5]
[361823292,1747823617590,-2564.95,0.00036438,5]
[361823293,1747823617601,-1818.07,0.00036438,5]
[361823294,1747823617611,-42262.48,0.00036438,5]
[361823295,1747823617621,-1719.68,0.00036438,5]
[361823296,1747823617631,-4510.74,0.00036438,5]
[361823297,1747823617642,-516.93,0.00036438,5]
[361823298,1747823617653,-3137.08,0.00036438,5]
[361823299,1747823617663,-506.82,0.00036438,5]
[361823300,1747823617674,-9532.22,0.00036438,5]
[361823301,1747823617684,-293.5568938,0.00036438,5]
[361823302,1747823617695,-1001.23,0.00036438,5]
[361823303,1747823617706,-420.0,0.00036438,5]
[361823304,1747823617716,-1349.86,0.00036438,5]
[361823305,1747823617727,-1554.78,0.00036438,5]
[361823306,1747823617736,-874.84,0.00036438,5]
[361823307,1747823617747,-2359.68,0.00036438,5]
[361823308,1747823617758,-627.61,0.00036438,5]
[361823309,1747823617768,-670.93,0.00036438,5]
[361823310,1747823617779,-420.0,0.00036438,5]
[361823311,1747823617789,-1909.1,0.00036438,5]
[361823312,1747823617800,-3667.82,0.00036438,5]
[361823313,1747823617811,-713.73,0.00036438,5]
[361823314,1747823617821,-3197.62,0.000365,2]
[361823315,1747823617831,-741.06,0.000365,2]
[361823316,1747823617842,-289.13,0.000365,2]
[361823317,1747823617854,-1980.59,0.000365,2]
[361823318,1747823617864,-2673.58,0.000365,2]
[361823319,1747823617875,-583.36,0.000365,2]
[361823320,1747823617885,-1796.49,0.000365,2]
[361823321,1747823617896,-756.58,0.000365,14]
[361823322,1747823617906,-15350.0,0.000365,120]
[361823323,1747823617916,-212.0,0.0003663,30]
[361823324,1747823617926,-610.41,0.00036649,2]
[361823325,1747823617936,-3197.62,0.000367,2]
[361823326,1747823617946,-741.06,0.000367,2]
[361823327,1747823617955,-289.13,0.000367,2]
[361823328,1747823617965,-1980.59,0.000367,2]
[361823329,1747823617975,-2673.58,0.000367,2]
[361823330,1747823617986,-583.36,0.000367,2]
[361823331,1747823617996,-1796.49,0.000367,2]
[361823332,1747823618006,-420.0,0.00036712,5]
[361823333,1747823618016,-868.63,0.00036712,5]
[361823334,1747823618026,-771.73,0.00036712,5]
[361823335,1747823618037,-1206.97,0.00036712,5]
[361823336,1747823618048,-1764.15,0.00036712,5]
[361823337,1747823618059,-550.16,0.00036712,5]
[361823338,1747823618070,-497.1,0.00036712,5]
[361823339,1747823618081,-280.11842376,0.00036712,5]
[361823340,1747823618091,-420.0,0.00036712,5]
[361823341,1747823618101,-965.56,0.00036712,5]
[361823342,1747823618113,-616.51,0.00036712,5]
[361823343,1747823618123,-420.0,0.00036712,5]
[361823344,1747823618133,-562.65,0.00036712,5]
[361823345,1747823618143,-611.48,0.00036712,5]
[361823346,1747823618153,-252.03259229,0.00036712,5]
[361823347,1747823618162,-506.54,0.00036712,5]
[361823348,1747823618172,-499.33,0.00036712,5]
[361823349,1747823618182,-911.46,0.00036712,5]
[361823350,1747823618192,-1153.75,0.00036712,5]
[361823351,1747823618202,-420.0,0.00036712,5]
[361823352,1747823618212,-730.43,0.00036712,5]
[361823353,1747823618222,-420.0,0.00036712,5]
[361823354,1747823618233,-1697.54,0.00036712,5]
[361823355,1747823618243,-579.77,0.00036712,5]
[361823356,1747823618253,-189.62943743,0.00036712,5]
[361823357,1747823618263,-420.0,0.00036712,5]
[361823358,1747823618274,-570.61,0.00036712,5]
[361823359,1747823618284,-788.01,0.00036712,5]
[361823360,1747823618294,-1490.72,0.00036712,5]
[361823361,1747823618305,-917.84,0.00036712,5]
[361823362,1747823618315,-642.67,0.00036712,5]
[361823363,1747823618325,-807.74,0.00036712,5]
[361823364,1747823618335,-901.58,0.00036712,5]
[361823365,1747823618346,-3015.53,0.00036712,5]
[361823366,1747823618356,-460.17,0.00036712,5]
[361823367,1747823618366,-642.11,0.00036712,5]
[361823368,1747823618376,-420.0,0.00036712,5]
[361823369,1747823618388,-1185.77,0.00036712,5]
[361823370,1747823618398,-973.19,0.00036712,5]
[361823371,1747823618408,-497.57,0.00036712,5]
[361823372,1747823618418,-1098.15,0.00036712,5]
[361823373,1747823618430,-297.88698753,0.00036712,5]